[Event "Early-Titled-Tuesday-Blitz-January-16-2024"]
[Site "Chess.com"]
[Date "2024.01.16"]
[Round "6"]
[White "Mikasinski"]
[Black "Nuvas"]
[Result "0-1"]
[WhiteElo "2607"]
[BlackElo "2788"]
[TimeControl "180+1"]
[EndTime "9:11:23 PST"]
[Termination "Nuvas won by resignation"]

1. e4 {[%clk 0:03:00.9]} 1... e5 {[%clk 0:02:50.7]} 2. Nf3 {[%clk 0:03:00.6]}
2... Nc6 {[%clk 0:02:42.3]} 3. Bb5 {[%clk 0:02:59]} 3... a6 {[%clk 0:02:35.6]}
4. Ba4 {[%clk 0:02:59]} 4... Nf6 {[%clk 0:02:36.2]} 5. d3 {[%clk 0:02:52.8]}
5... Bc5 {[%clk 0:02:32.1]} 6. O-O {[%clk 0:02:48.7]} 6... b5 {[%clk 0:02:26.5]}
7. Bb3 {[%clk 0:02:48.5]} 7... d6 {[%clk 0:02:27.1]} 8. a4 {[%clk 0:02:40.5]}
8... Rb8 {[%clk 0:02:26.4]} 9. axb5 {[%clk 0:02:24.5]} 9... axb5 {[%clk
0:02:27.3]} 10. c3 {[%clk 0:02:24]} 10... O-O {[%clk 0:02:20.8]} 11. Nbd2 {[%clk
0:02:20.1]} 11... Bb6 {[%clk 0:02:16.4]} 12. Bc2 {[%clk 0:02:11.6]} 12... d5
{[%clk 0:02:10.3]} 13. Re1 {[%clk 0:02:05.5]} 13... dxe4 {[%clk 0:02:08.1]} 14.
Nxe4 {[%clk 0:02:02.9]} 14... Nxe4 {[%clk 0:02:08]} 15. dxe4 {[%clk 0:02:02.6]}
15... Qxd1 {[%clk 0:02:07.1]} 16. Rxd1 {[%clk 0:02:02.6]} 16... Be6 {[%clk
0:02:03.7]} 17. Kf1 {[%clk 0:01:48.2]} 17... f6 {[%clk 0:01:59]} 18. Bd3 {[%clk
0:01:44.6]} 18... Rfd8 {[%clk 0:01:52]} 19. Be2 {[%clk 0:01:40.8]} 19... Rxd1+
{[%clk 0:01:49.6]} 20. Bxd1 {[%clk 0:01:41.1]} 20... b4 {[%clk 0:01:45.7]} 21.
Ba4 {[%clk 0:01:34.3]} 21... Ra8 {[%clk 0:01:45.8]} 22. Nd2 {[%clk 0:01:24.9]}
22... Kf8 {[%clk 0:01:37]} 23. Ke2 {[%clk 0:01:20.9]} 23... Bc5 {[%clk
0:01:13.5]} 24. f3 {[%clk 0:01:14]} 24... Ne7 {[%clk 0:01:13.4]} 25. Kd3 {[%clk
0:01:01.8]} 25... bxc3 {[%clk 0:01:00.4]} 26. bxc3 {[%clk 0:01:00.5]} 26... Bd7
{[%clk 0:00:55.7]} 27. Nb3 {[%clk 0:00:55.8]} 27... Bxa4 {[%clk 0:00:55.5]} 28.
Rxa4 {[%clk 0:00:50.8]} 28... Rxa4 {[%clk 0:00:53.6]} 29. Nxc5 {[%clk
0:00:51.2]} 29... Ra2 {[%clk 0:00:51.4]} 30. Bd2 {[%clk 0:00:51.3]} 30... Kf7
{[%clk 0:00:51.1]} 31. g3 {[%clk 0:00:48.3]} 31... h5 {[%clk 0:00:50.3]} 32. h4
{[%clk 0:00:47.6]} 32... Nc8 {[%clk 0:00:47]} 33. f4 {[%clk 0:00:45.6]} 33...
exf4 {[%clk 0:00:41.9]} 34. Bxf4 {[%clk 0:00:45.6]} 34... c6 {[%clk 0:00:39.6]}
35. Nb7 {[%clk 0:00:44.7]} 35... Ne7 {[%clk 0:00:38]} 36. Nd8+ {[%clk
0:00:42.3]} 36... Ke8 {[%clk 0:00:36.7]} 37. Ne6 {[%clk 0:00:42.2]} 37... g6
{[%clk 0:00:37.2]} 38. Nd4 {[%clk 0:00:35.9]} 38... Kd7 {[%clk 0:00:35.8]} 39.
Nb3 {[%clk 0:00:31.4]} 39... f5 {[%clk 0:00:34.1]} 40. Nc5+ {[%clk 0:00:30.3]}
40... Ke8 {[%clk 0:00:33.8]} 41. Nb7 {[%clk 0:00:20.3]} 41... Kf7 {[%clk
0:00:32.7]} 42. Nd6+ {[%clk 0:00:19.1]} 42... Ke6 {[%clk 0:00:33]} 43. Nb7
{[%clk 0:00:18.1]} 43... fxe4+ {[%clk 0:00:32.9]} 44. Kxe4 {[%clk 0:00:18.4]}
44... Ra4+ {[%clk 0:00:31.7]} 45. Kf3 {[%clk 0:00:18.2]} 45... Kd5 {[%clk
0:00:29.5]} 46. Nd8 {[%clk 0:00:18]} 46... Rc4 {[%clk 0:00:26.3]} 47. Bd2 {[%clk
0:00:18.2]} 47... Nf5 {[%clk 0:00:22.3]} 48. Nf7 {[%clk 0:00:18.3]} 48... Nd6
{[%clk 0:00:22.9]} 49. Nh8 {[%clk 0:00:18.1]} 49... Ne4 {[%clk 0:00:22.4]} 50.
Be1 {[%clk 0:00:18.7]} 50... g5 {[%clk 0:00:21.3]} 51. Ng6 {[%clk 0:00:17.5]}
51... g4+ {[%clk 0:00:21.6]} 52. Kf4 {[%clk 0:00:16.6]} 52... Nxc3+ {[%clk
0:00:20.3]} 53. Kg5 {[%clk 0:00:17.3]} 53... Ne2 {[%clk 0:00:19.4]} 54. Kxh5
{[%clk 0:00:16.5]} 54... Re4 {[%clk 0:00:15.2]} 55. Bf2 {[%clk 0:00:16]} 55...
c5 {[%clk 0:00:15.1]} 56. Kg5 {[%clk 0:00:14.9]} 56... c4 {[%clk 0:00:15.3]} 57.
Be1 {[%clk 0:00:14.9]} 57... c3 {[%clk 0:00:14.9]} 58. Bxc3 {[%clk 0:00:14.4]}
58... Nxc3 {[%clk 0:00:15.8]} 59. Nf4+ {[%clk 0:00:14.7]} 59... Ke5 {[%clk
0:00:14.7]} 60. Kxg4 {[%clk 0:00:14.3]} 60... Ne2 {[%clk 0:00:14.9]} 61. Kf3
{[%clk 0:00:14.1]} 61... Nxf4 {[%clk 0:00:15.4]} 0-1

[Event "Early-Titled-Tuesday-Blitz-January-16-2024"]
[Site "Chess.com"]
[Date "2024.01.16"]
[Round "6"]
[White "Elsa167"]
[Black "igorkovalenko"]
[Result "1-0"]
[WhiteElo "2850"]
[BlackElo "2990"]
[TimeControl "180+1"]
[EndTime "9:11:24 PST"]
[Termination "Elsa167 won by resignation"]

1. d4 {[%clk 0:03:00.9]} 1... Nf6 {[%clk 0:00:39.4]} 2. c4 {[%clk 0:02:57.9]}
2... e6 {[%clk 0:00:39.7]} 3. Nf3 {[%clk 0:02:57.1]} 3... b6 {[%clk 0:00:39.8]}
4. Bf4 {[%clk 0:02:56.9]} 4... Bb7 {[%clk 0:00:40.7]} 5. e3 {[%clk 0:02:57.3]}
5... Bb4+ {[%clk 0:00:39.6]} 6. Nfd2 {[%clk 0:02:57.5]} 6... Ne4 {[%clk
0:00:39.5]} 7. a3 {[%clk 0:02:53.2]} 7... Bxd2+ {[%clk 0:00:39.3]} 8. Nxd2
{[%clk 0:02:54.1]} 8... Nxd2 {[%clk 0:00:37.3]} 9. Qxd2 {[%clk 0:02:55]} 9...
O-O {[%clk 0:00:37.6]} 10. Bd3 {[%clk 0:02:37.2]} 10... d6 {[%clk 0:00:37.8]}
11. O-O {[%clk 0:02:35]} 11... f5 {[%clk 0:00:37.4]} 12. Bg3 {[%clk 0:02:01.1]}
12... Nd7 {[%clk 0:00:37.1]} 13. f3 {[%clk 0:01:59.8]} 13... Qe7 {[%clk
0:00:30.3]} 14. b4 {[%clk 0:01:53]} 14... e5 {[%clk 0:00:29.1]} 15. d5 {[%clk
0:01:43]} 15... g6 {[%clk 0:00:20.8]} 16. e4 {[%clk 0:01:37.2]} 16... f4 {[%clk
0:00:20.6]} 17. Bf2 {[%clk 0:01:37.7]} 17... g5 {[%clk 0:00:20.9]} 18. Rac1
{[%clk 0:01:36.9]} 18... Nf6 {[%clk 0:00:20]} 19. c5 {[%clk 0:01:25.6]} 19... h5
{[%clk 0:00:18.9]} 20. Rc2 {[%clk 0:01:22.7]} 20... Rf7 {[%clk 0:00:18.9]} 21.
Rfc1 {[%clk 0:01:22.6]} 21... Rg7 {[%clk 0:00:18.6]} 22. Kh1 {[%clk 0:01:17.1]}
22... Qd8 {[%clk 0:00:18.8]} 23. Rc3 {[%clk 0:01:12.8]} 23... Kh7 {[%clk
0:00:18.9]} 24. Qc2 {[%clk 0:01:12.8]} 24... Kh6 {[%clk 0:00:19.4]} 25. Qa4
{[%clk 0:01:05.3]} 25... h4 {[%clk 0:00:14.3]} 26. h3 {[%clk 0:01:01.2]} 26...
Nh5 {[%clk 0:00:13.1]} 27. Ba6 {[%clk 0:00:58.5]} 27... Bxa6 {[%clk 0:00:12.7]}
28. Qxa6 {[%clk 0:00:58.4]} 28... Ng3+ {[%clk 0:00:13.6]} 29. Bxg3 {[%clk
0:00:58.5]} 29... hxg3 {[%clk 0:00:13.6]} 30. cxd6 {[%clk 0:00:57.3]} 30... cxd6
{[%clk 0:00:14.5]} 31. Kg1 {[%clk 0:00:42.1]} 31... Rd7 {[%clk 0:00:13.4]} 32.
Rc8 {[%clk 0:00:42]} 32... Rxc8 {[%clk 0:00:13.1]} 33. Rxc8 {[%clk 0:00:42.9]}
33... Qe7 {[%clk 0:00:13.3]} 34. Rh8+ {[%clk 0:00:28.6]} 34... Kg6 {[%clk
0:00:13.4]} 35. Qc8 {[%clk 0:00:29.1]} 35... Qf7 {[%clk 0:00:13.5]} 36. Rg8+
{[%clk 0:00:24.9]} 36... Kh6 {[%clk 0:00:13.8]} 37. Rh8+ {[%clk 0:00:23.7]}
37... Kg6 {[%clk 0:00:14]} 38. Qg8+ {[%clk 0:00:09.7]} 38... Qxg8 {[%clk
0:00:14]} 39. Rxg8+ {[%clk 0:00:10.6]} 39... Kf6 {[%clk 0:00:13.3]} 40. Rc8
{[%clk 0:00:11.1]} 40... b5 {[%clk 0:00:12]} 41. Kf1 {[%clk 0:00:11.1]} 41... a5
{[%clk 0:00:12.3]} 42. bxa5 {[%clk 0:00:05.4]} 42... Ra7 {[%clk 0:00:12]} 43.
Rc6 {[%clk 0:00:05.9]} 43... Rxa5 {[%clk 0:00:12]} 44. Rxd6+ {[%clk 0:00:06.5]}
44... Kf7 {[%clk 0:00:12.7]} 45. Re6 {[%clk 0:00:03]} 45... Rxa3 {[%clk
0:00:12.6]} 46. Rxe5 {[%clk 0:00:03.7]} 46... Ra1+ {[%clk 0:00:12.6]} 47. Ke2
{[%clk 0:00:04.3]} 47... Ra2+ {[%clk 0:00:13.5]} 48. Kd3 {[%clk 0:00:02.1]}
48... Rxg2 {[%clk 0:00:13.6]} 49. d6 {[%clk 0:00:02.5]} 49... Rf2 {[%clk
0:00:14.5]} 50. d7 {[%clk 0:00:02.3]} 50... Rf1 {[%clk 0:00:12.6]} 51. Ke2
{[%clk 0:00:02.6]} 51... Rf2+ {[%clk 0:00:11.2]} 52. Ke1 {[%clk 0:00:02.6]}
52... Rxf3 {[%clk 0:00:10.6]} 53. d8=Q {[%clk 0:00:02.5]} 53... Re3+ {[%clk
0:00:11.5]} 54. Kf1 {[%clk 0:00:02.9]} 54... g2+ {[%clk 0:00:12.4]} 55. Kxg2
{[%clk 0:00:02.7]} 1-0

[Event "Early-Titled-Tuesday-Blitz-January-16-2024"]
[Site "Chess.com"]
[Date "2024.01.16"]
[Round "6"]
[White "Arystanner"]
[Black "vugarrasulov"]
[Result "0-1"]
[WhiteElo "2802"]
[BlackElo "2966"]
[TimeControl "180+1"]
[EndTime "9:11:24 PST"]
[Termination "vugarrasulov won by resignation"]

1. e4 {[%clk 0:03:00.9]} 1... e5 {[%clk 0:02:59.4]} 2. Nf3 {[%clk 0:03:01]} 2...
Nc6 {[%clk 0:02:59.9]} 3. Bb5 {[%clk 0:03:01.4]} 3... g6 {[%clk 0:02:58.5]} 4.
d4 {[%clk 0:03:00.5]} 4... exd4 {[%clk 0:02:58.3]} 5. Bg5 {[%clk 0:03:00.8]}
5... Be7 {[%clk 0:02:56.6]} 6. Bxe7 {[%clk 0:02:57]} 6... Qxe7 {[%clk
0:02:57.5]} 7. O-O {[%clk 0:02:56.7]} 7... Nf6 {[%clk 0:02:53.7]} 8. e5 {[%clk
0:02:52.9]} 8... Nd5 {[%clk 0:02:52.1]} 9. Re1 {[%clk 0:02:49.2]} 9... O-O
{[%clk 0:02:48.5]} 10. Nxd4 {[%clk 0:02:46.8]} 10... Nf4 {[%clk 0:02:38.3]} 11.
Nc3 {[%clk 0:02:34.3]} 11... Nxe5 {[%clk 0:02:20.7]} 12. g3 {[%clk 0:02:11.3]}
12... Nh3+ {[%clk 0:02:12]} 13. Kg2 {[%clk 0:02:11.8]} 13... c6 {[%clk
0:02:04.4]} 14. f4 {[%clk 0:02:03]} 14... d6 {[%clk 0:02:01.7]} 15. fxe5 {[%clk
0:01:51.8]} 15... dxe5 {[%clk 0:02:02.6]} 16. Bd3 {[%clk 0:01:33]} 16... Qc5
{[%clk 0:01:47.7]} 17. Nb3 {[%clk 0:01:12.8]} 17... Qf2+ {[%clk 0:01:37.8]} 18.
Kh1 {[%clk 0:01:13.2]} 18... Qb6 {[%clk 0:01:35.8]} 19. Rf1 {[%clk 0:00:51]}
19... Nf2+ {[%clk 0:01:34.9]} 20. Rxf2 {[%clk 0:00:51.3]} 20... Qxf2 {[%clk
0:01:35.8]} 21. Ne4 {[%clk 0:00:50.2]} 21... Qe3 {[%clk 0:01:33.2]} 22. Qe1
{[%clk 0:00:36.4]} 22... Qxe1+ {[%clk 0:01:30.9]} 23. Rxe1 {[%clk 0:00:35.7]}
23... Kg7 {[%clk 0:01:28.1]} 24. Nd6 {[%clk 0:00:34.4]} 24... f6 {[%clk
0:01:27.3]} 25. Nc5 {[%clk 0:00:33.5]} 25... b6 {[%clk 0:01:25.2]} 26. Nxc8
{[%clk 0:00:21.9]} 26... Rfxc8 {[%clk 0:01:23]} 27. Ne4 {[%clk 0:00:20.7]} 27...
Rd8 {[%clk 0:01:21.2]} 28. g4 {[%clk 0:00:20.6]} 28... Rd4 {[%clk 0:01:10.7]}
29. Kg2 {[%clk 0:00:19.9]} 29... f5 {[%clk 0:01:02.1]} 30. gxf5 {[%clk
0:00:19.9]} 30... gxf5 {[%clk 0:00:57.7]} 31. Ng3 {[%clk 0:00:20.2]} 31... Kf6
{[%clk 0:00:53.9]} 32. Bxf5 {[%clk 0:00:18.3]} 32... Rd2+ {[%clk 0:00:54.8]} 33.
Kh3 {[%clk 0:00:18.5]} 33... Rd4 {[%clk 0:00:44.4]} 34. Be4 {[%clk 0:00:18.6]}
34... Rg8 {[%clk 0:00:38.3]} 35. Bxc6 {[%clk 0:00:16.1]} 35... h5 {[%clk
0:00:26.6]} 36. Ne4+ {[%clk 0:00:14.9]} 36... Ke6 {[%clk 0:00:25.9]} 37. Bb5
{[%clk 0:00:08.7]} 37... Rg4 {[%clk 0:00:21.4]} 38. Bd3 {[%clk 0:00:09.1]} 38...
Rf4 {[%clk 0:00:21.9]} 39. Re3 {[%clk 0:00:08.7]} 39... Kd5 {[%clk 0:00:19.6]}
40. b3 {[%clk 0:00:09.2]} 40... Rdxe4 {[%clk 0:00:18.7]} 41. Bxe4+ {[%clk
0:00:08.6]} 41... Rxe4 {[%clk 0:00:19.6]} 42. Rc3 {[%clk 0:00:07.9]} 42... Re2
{[%clk 0:00:19.2]} 43. Kg3 {[%clk 0:00:07.7]} 43... e4 {[%clk 0:00:19]} 44. Rc7
{[%clk 0:00:07.4]} 44... a5 {[%clk 0:00:19]} 45. h4 {[%clk 0:00:07.1]} 45...
Re3+ {[%clk 0:00:16.8]} 46. Kf4 {[%clk 0:00:06.4]} 46... Rf3+ {[%clk 0:00:17.4]}
47. Kg5 {[%clk 0:00:07.2]} 47... e3 {[%clk 0:00:18.1]} 48. Re7 {[%clk
0:00:06.4]} 48... Kd4 {[%clk 0:00:18.3]} 49. Kxh5 {[%clk 0:00:07]} 49... Rg3
{[%clk 0:00:18.5]} 50. c4 {[%clk 0:00:02.6]} 50... Kd3 {[%clk 0:00:17.1]} 51.
Re6 {[%clk 0:00:03.3]} 51... e2 {[%clk 0:00:17.2]} 52. Rd6+ {[%clk 0:00:02.7]}
52... Kc2 {[%clk 0:00:17.6]} 53. Re6 {[%clk 0:00:03.4]} 53... Kd2 {[%clk
0:00:18.3]} 54. Rd6+ {[%clk 0:00:03.9]} 54... Rd3 {[%clk 0:00:17.9]} 55. Re6
{[%clk 0:00:04.4]} 55... Re3 {[%clk 0:00:18.3]} 0-1

[Event "Early-Titled-Tuesday-Blitz-January-16-2024"]
[Site "Chess.com"]
[Date "2024.01.16"]
[Round "6"]
[White "FARIZA2018"]
[Black "KanalSzachowy"]
[Result "1/2-1/2"]
[WhiteElo "2501"]
[BlackElo "2349"]
[TimeControl "180+1"]
[EndTime "9:11:25 PST"]
[Termination "Game drawn by repetition"]

1. e4 {[%clk 0:03:00.4]} 1... c5 {[%clk 0:00:55.2]} 2. Nf3 {[%clk 0:02:58.3]}
2... Nc6 {[%clk 0:00:55.2]} 3. d4 {[%clk 0:02:58.3]} 3... cxd4 {[%clk
0:00:56.1]} 4. Nxd4 {[%clk 0:02:58.5]} 4... Nf6 {[%clk 0:00:57]} 5. Nc3 {[%clk
0:02:58.5]} 5... e5 {[%clk 0:00:57.5]} 6. Ndb5 {[%clk 0:02:58.5]} 6... Bb4
{[%clk 0:00:58]} 7. a3 {[%clk 0:02:43.5]} 7... Bxc3+ {[%clk 0:00:58]} 8. Nxc3
{[%clk 0:02:43.5]} 8... d6 {[%clk 0:00:58.9]} 9. Bc4 {[%clk 0:02:39.5]} 9... Be6
{[%clk 0:00:54.2]} 10. Bxe6 {[%clk 0:02:25.9]} 10... fxe6 {[%clk 0:00:55.1]} 11.
O-O {[%clk 0:02:24.4]} 11... O-O {[%clk 0:00:49]} 12. f4 {[%clk 0:02:18.8]}
12... Qb6+ {[%clk 0:00:46.2]} 13. Kh1 {[%clk 0:02:15.6]} 13... exf4 {[%clk
0:00:46.5]} 14. Bxf4 {[%clk 0:02:13.2]} 14... Ne5 {[%clk 0:00:45.4]} 15. Rb1
{[%clk 0:02:00.6]} 15... Nfg4 {[%clk 0:00:40.4]} 16. Qe2 {[%clk 0:01:57.6]}
16... Rf6 {[%clk 0:00:39]} 17. h3 {[%clk 0:01:36.5]} 17... Raf8 {[%clk
0:00:39.1]} 18. Bg3 {[%clk 0:01:29.5]} 18... Rxf1+ {[%clk 0:00:34]} 19. Rxf1
{[%clk 0:01:28.6]} 19... Rxf1+ {[%clk 0:00:34.3]} 20. Qxf1 {[%clk 0:01:28.2]}
20... Qxb2 {[%clk 0:00:35]} 21. Nd1 {[%clk 0:01:07.5]} 21... Qxa3 {[%clk
0:00:32.4]} 22. c3 {[%clk 0:00:52.7]} 22... Nf6 {[%clk 0:00:28.9]} 23. Bxe5
{[%clk 0:00:52.3]} 23... dxe5 {[%clk 0:00:29.2]} 24. Qc4 {[%clk 0:00:52.3]}
24... Qa6 {[%clk 0:00:27.3]} 25. Qc8+ {[%clk 0:00:51]} 25... Kf7 {[%clk
0:00:27.3]} 26. Ne3 {[%clk 0:00:49.6]} 26... Qc6 {[%clk 0:00:19.9]} 27. Qb8
{[%clk 0:00:37.4]} 27... a6 {[%clk 0:00:20]} 28. Kg1 {[%clk 0:00:28.3]} 28... h6
{[%clk 0:00:19.7]} 29. Kf2 {[%clk 0:00:27.2]} 29... Nxe4+ {[%clk 0:00:18.4]} 30.
Kg1 {[%clk 0:00:25.8]} 30... Qb6 {[%clk 0:00:15.2]} 31. Kh2 {[%clk 0:00:16.3]}
31... Qxe3 {[%clk 0:00:15.4]} 32. Qxe5 {[%clk 0:00:16.4]} 32... Qd3 {[%clk
0:00:08.9]} 33. Qc7+ {[%clk 0:00:16]} 33... Kg6 {[%clk 0:00:08.4]} 34. Qxb7
{[%clk 0:00:15]} 34... Qd6+ {[%clk 0:00:08.6]} 35. Kg1 {[%clk 0:00:14.2]} 35...
Qc5+ {[%clk 0:00:08.2]} 36. Kh2 {[%clk 0:00:14.2]} 36... Qe5+ {[%clk 0:00:08.6]}
37. Kg1 {[%clk 0:00:14.3]} 37... Ng3 {[%clk 0:00:07.8]} 38. Qb1+ {[%clk
0:00:11.9]} 38... Qf5 {[%clk 0:00:05.7]} 39. Qb6 {[%clk 0:00:08.6]} 39... Ne2+
{[%clk 0:00:05.9]} 40. Kh2 {[%clk 0:00:05.8]} 40... Qf4+ {[%clk 0:00:05.1]} 41.
Kh1 {[%clk 0:00:06]} 41... Ng3+ {[%clk 0:00:04.4]} 42. Kg1 {[%clk 0:00:05.3]}
42... Ne2+ {[%clk 0:00:04.8]} 43. Kh1 {[%clk 0:00:05.2]} 43... Qf1+ {[%clk
0:00:03.7]} 44. Kh2 {[%clk 0:00:05.4]} 44... Qf4+ {[%clk 0:00:04.3]} 45. Kh1
{[%clk 0:00:05.5]} 1/2-1/2

[Event "Early-Titled-Tuesday-Blitz-January-16-2024"]
[Site "Chess.com"]
[Date "2024.01.16"]
[Round "6"]
[White "KVAIDAN"]
[Black "SnekkerAndersen"]
[Result "0-1"]
[WhiteElo "2411"]
[BlackElo "2648"]
[TimeControl "180+1"]
[EndTime "9:11:27 PST"]
[Termination "SnekkerAndersen won on time"]

1. f4 {[%clk 0:03:00.9]} 1... e5 {[%clk 0:02:59.6]} 2. d3 {[%clk 0:03:00.5]}
2... d6 {[%clk 0:03:00.5]} 3. Nc3 {[%clk 0:02:59.1]} 3... Nc6 {[%clk 0:02:59.4]}
4. e4 {[%clk 0:02:58.3]} 4... g6 {[%clk 0:02:59.5]} 5. Nf3 {[%clk 0:02:58.1]}
5... Bg7 {[%clk 0:02:59.9]} 6. Be2 {[%clk 0:02:58.4]} 6... Nge7 {[%clk
0:03:00.2]} 7. O-O {[%clk 0:02:59.1]} 7... O-O {[%clk 0:03:00.7]} 8. fxe5 {[%clk
0:02:56.5]} 8... Nxe5 {[%clk 0:02:59.2]} 9. Nxe5 {[%clk 0:02:53.3]} 9... dxe5
{[%clk 0:03:00.1]} 10. Bg5 {[%clk 0:02:52.8]} 10... f6 {[%clk 0:02:59]} 11. Be3
{[%clk 0:02:52]} 11... Be6 {[%clk 0:02:59]} 12. Qe1 {[%clk 0:02:51.3]} 12... Nc6
{[%clk 0:02:57.6]} 13. Qf2 {[%clk 0:02:41.8]} 13... Nd4 {[%clk 0:02:55.3]} 14.
Bxd4 {[%clk 0:02:41.3]} 14... Qxd4 {[%clk 0:02:56.2]} 15. Qxd4 {[%clk
0:02:40.7]} 15... exd4 {[%clk 0:02:57.1]} 16. Nb5 {[%clk 0:02:40.8]} 16... Bd7
{[%clk 0:02:45.5]} 17. Nxc7 {[%clk 0:02:37.7]} 17... Rac8 {[%clk 0:02:45]} 18.
Nd5 {[%clk 0:02:35.4]} 18... Rxc2 {[%clk 0:02:44.6]} 19. Bf3 {[%clk 0:02:24.2]}
19... Rxb2 {[%clk 0:02:42.9]} 20. Rfb1 {[%clk 0:02:24.7]} 20... Rxb1+ {[%clk
0:02:42.7]} 21. Rxb1 {[%clk 0:02:24.7]} 21... b6 {[%clk 0:02:42]} 22. Rc1 {[%clk
0:02:18.7]} 22... Bb5 {[%clk 0:02:36.7]} 23. Be2 {[%clk 0:01:58.5]} 23... h5
{[%clk 0:02:27.5]} 24. Rc7 {[%clk 0:01:56.1]} 24... Rf7 {[%clk 0:02:26]} 25.
Rc8+ {[%clk 0:01:43.4]} 25... Kh7 {[%clk 0:02:25]} 26. h4 {[%clk 0:01:35.8]}
26... f5 {[%clk 0:02:23.1]} 27. exf5 {[%clk 0:01:29.6]} 27... Rxf5 {[%clk
0:02:21]} 28. Bf3 {[%clk 0:01:10]} 28... Bxd3 {[%clk 0:02:14.6]} 29. Rc7 {[%clk
0:01:10.1]} 29... Be2 {[%clk 0:01:52.9]} 30. Ne7 {[%clk 0:01:04.4]} 30... Re5
{[%clk 0:01:53]} 31. Nc6 {[%clk 0:00:57.8]} 31... Re8 {[%clk 0:01:38.6]} 32.
Nxd4 {[%clk 0:00:53]} 32... Bd3 {[%clk 0:01:12.1]} 33. Bd5 {[%clk 0:00:38.6]}
33... Rd8 {[%clk 0:01:09.8]} 34. Rxg7+ {[%clk 0:00:35.8]} 34... Kh6 {[%clk
0:01:06.1]} 35. Ne6 {[%clk 0:00:18.5]} 35... Rxd5 {[%clk 0:01:03.7]} 36. Rxa7
{[%clk 0:00:18.6]} 36... Ra5 {[%clk 0:00:58.8]} 37. Rc7 {[%clk 0:00:17.5]} 37...
g5 {[%clk 0:00:55.4]} 38. Nxg5 {[%clk 0:00:17.3]} 38... b5 {[%clk 0:00:51.1]}
39. Rd7 {[%clk 0:00:16]} 39... Bc4 {[%clk 0:00:47.7]} 40. Rd2 {[%clk 0:00:15.7]}
40... Kg6 {[%clk 0:00:47.3]} 41. Rd6+ {[%clk 0:00:14.6]} 41... Kf5 {[%clk
0:00:47.3]} 42. Nf3 {[%clk 0:00:14.6]} 42... Rxa2 {[%clk 0:00:47]} 43. Rb6
{[%clk 0:00:14.8]} 43... Kf4 {[%clk 0:00:46.3]} 44. Nd4 {[%clk 0:00:13.3]} 44...
Rb2 {[%clk 0:00:44.7]} 45. Rh6 {[%clk 0:00:11]} 45... Kg4 {[%clk 0:00:44.5]} 46.
Nf3 {[%clk 0:00:09.7]} 46... Bd5 {[%clk 0:00:44]} 47. Rg6+ {[%clk 0:00:09.7]}
47... Kf4 {[%clk 0:00:44.2]} 48. Rf6+ {[%clk 0:00:09.4]} 48... Ke3 {[%clk
0:00:44.7]} 49. Kh2 {[%clk 0:00:07.8]} 49... b4 {[%clk 0:00:43.9]} 50. Kg3
{[%clk 0:00:06.9]} 50... b3 {[%clk 0:00:42.7]} 51. Rd6 {[%clk 0:00:07]} 51...
Be4 {[%clk 0:00:28.7]} 52. Ng5 {[%clk 0:00:06.4]} 52... Rxg2+ {[%clk 0:00:27.9]}
53. Kh3 {[%clk 0:00:06.8]} 53... b2 {[%clk 0:00:24.3]} 54. Rb6 {[%clk
0:00:05.4]} 54... Rxg5 {[%clk 0:00:18.4]} 55. Rxb2 {[%clk 0:00:04.2]} 55... Bf5+
{[%clk 0:00:15.8]} 56. Kh2 {[%clk 0:00:04.5]} 56... Rg4 {[%clk 0:00:16.5]} 57.
Rb3+ {[%clk 0:00:04.7]} 57... Kf4 {[%clk 0:00:16.7]} 58. Rh3 {[%clk 0:00:04.7]}
58... Be4 {[%clk 0:00:16.1]} 0-1